Cogmind - Beta 11.1 @@@ ROGUE MODE // 2022.06.16 @ 22:01:59 Player: Savant Result: Destroyed by L-41 Fighter with Axe Performance ------------- Evolutions (3) 1500 Regions Visited (13) 2600 Robots Destroyed (233) 1165 Value Destroyed (6969) 6969 Prototype IDs (49) 980 Alien Tech Used (0) 0 Bonus (859) 859 TOTAL SCORE: 14073 Bonus ------- High Alert Combat Kills 258 Follower Combat Kills 383 Met Data Miner 300 Friendly Fire -82 Cogmind --------- Core Integrity 0/700 Matter 290/300 Energy 80/100 System Corruption 21% Temperature Cool (0) Movement Walking (260) Ox2 Location -6/Proximity Caves Parts ------- > --- POWER (1) -------- (None) > --- PROPULSION (3) --- Enhanced Flexi-carbon Leg VTOL Module > --- UTILITY (7) ------ Coolant Injector High-capacity Storage Unit Advanced Targeting Computer Advanced Targeting Computer Improved Medium Armor Plating Light Regenerative Plating Hacking Suite > --- WEAPON (2) ------- Neutron Cannon Power Maul > --- INVENTORY (20) --- Antimatter Reactor Advanced Heat Sink Huge Storage Unit Advanced Visual Processing Unit Hardened Heavy Armor Plating Medium Reactive Plating System Shield Makeshift System Shield Component Analysis Suite Long-range Tractor Beam Sensor Drone Bay (20/20) Lightning Gun Plasma Rifle Improved EM Pulse Cannon Magnetic Acceleration Cannon Improved Grenade Launcher Dirty Datajack (20) Plasma Cutter Heavy Pick Peak State ------------ > --- POWER ------------ Neutrino Core > --- PROPULSION ------- Light Treads Enhanced Flexi-carbon Leg VTOL Module > --- UTILITY ---------- Coolant Injector High-capacity Storage Unit Advanced Targeting Computer Advanced Targeting Computer Improved Medium Armor Plating Light Regenerative Plating Hacking Suite > --- WEAPON ----------- Neutron Cannon Magnetic Acceleration Cannon > --- INVENTORY -------- Antimatter Reactor Advanced Heat Sink Huge Storage Unit Advanced Visual Processing Unit Hardened Heavy Armor Plating Medium Reactive Plating System Shield Makeshift System Shield Component Analysis Suite Long-range Tractor Beam Sensor Drone Bay Lightning Gun Plasma Rifle Improved EM Pulse Cannon Improved Grenade Launcher Dirty Datajack Plasma Cutter Power Maul Heavy Pick [Rating: 60] Favorites ----------- Power Reinforced Ion Engine Engine Reinforced Ion Engine Power Core Light Nuclear Core Propulsion Medium Treads Treads Medium Treads Leg Enhanced Flexi-carbon Leg Wheel Wheel Flight Unit VTOL Module Utility Advanced Targeting Computer Device Structural Scanner Storage High-capacity Storage Unit Processor Advanced Targeting Computer Hackware Hacking Suite Protection Light Regenerative Plating Weapon Advanced Assault Cannon Energy Gun Gatling Laser Energy Cannon Advanced Beam Cannon Ballistic Gun Assault Rifle Ballistic Cannon Advanced Assault Cannon Launcher Improved Grenade Launcher Special Weapon Enhanced Flamer Impact Weapon Power Maul Slashing Weapon Axe Special Melee Weapon Datajack Build | -11 -10 -10 -9 -9 -9 -8 -8 -8 -7 -7 -7 -7 -6 ------- Run | Scr Mat Min Mat Min Exi Min Mat Sto Fac Low Low Dat Pro Slots Evolved 6 | . . . 2 . . . 2 . 2 . . . . Power . | . . . . . . . . . . . . . . Propulsion 1 | . . . . . . . 1 . . . . . . Utility 5 | . . . 2 . . . 1 . 2 . . . . Weapon . | . . . . . . . . . . . . . . Parts Attached 309 | 6 21 14 43 . 2 6 56 32 77 20 14 3 15 Power 13 | 1 1 . 3 . . . 1 1 2 1 1 . 2 Engine 8 | 1 1 . 3 . . . 1 1 1 . . . . Core 5 | . . . . . . . . . 1 1 1 . 2 Reactor . | . . . . . . . . . . . . . . Propulsion 76 | 2 16 7 14 . . 4 8 7 11 3 2 . 2 Treads 42 | 1 8 3 7 . . 2 7 5 7 . 1 . 1 Leg 2 | . . . . . . . . . 1 . . . 1 Wheel 28 | 1 8 4 6 . . 2 1 . 3 3 . . . Hover . | . . . . . . . . . . . . . . Flight 4 | . . . 1 . . . . 2 . . 1 . . Utility 90 | 1 3 3 13 . . 2 12 9 32 8 3 . 4 Device 52 | . . 1 7 . . . 5 6 25 5 2 . 1 Storage 3 | 1 1 . . . . 1 . . . . . . . Processor 4 | . . . 1 . . . 2 . . 1 . . . Hackware 3 | . . . . . . . . 1 2 . . . . Protection 28 | . 2 2 5 . . 1 5 2 5 2 1 . 3 Artifact . | . . . . . . . . . . . . . . Weapon 130 | 2 1 4 13 . 2 . 35 15 32 8 8 3 7 Energy Gun 10 | . . . . . . . 5 . 4 . . . 1 Energy Cannon 14 | . . . . . . . 5 3 3 1 . . 2 Ballistic Gun 14 | 2 1 2 5 . . . 2 . . . 1 1 . Ballistic Cannon 43 | . . . 1 . 1 . 17 8 9 1 4 1 1 Launcher 11 | . . 2 3 . . . 1 . 1 2 . . 2 Special Weapon 18 | . . . 4 . . . 4 3 4 1 1 1 . Impact Weapon 17 | . . . . . . . . . 11 3 2 . 1 Slashing Weapon 2 | . . . . . . . 1 1 . . . . . Piercing Weapon . | . . . . . . . . . . . . . . Special Melee Weapon 1 | . . . . . 1 . . . . . . . . Unidentified Prototypes 8 | . . 1 1 . . . 1 3 . . . . 2 Corrupted Parts 3 | . . . . . . . . . . . . . 3 System Corruption 20 | . . . . . . . . . . . . . 20 Parts Lost 37 | . 1 2 4 . . 1 4 1 7 9 3 . 5 Power 6 | . . . 2 . . . . . 1 2 . . 1 Propulsion 14 | . . 1 . . . . 1 1 3 3 2 . 3 Utility 10 | . . 1 1 . . 1 3 . 2 2 . . . Weapon 7 | . 1 . 1 . . . . . 1 2 1 . 1 Highest Loss Streak 4 | . 1 2 1 . . 1 1 1 3 4 1 . 3 To Critical Strikes . | . . . . . . . . . . . . . . Average Slot Usage (%) 98 | . 99 99 99 100 100 99 99 99 99 92 91 87 98 Engine 7 | . 14 14 10 11 11 11 8 9 5 . . . . Treads 16 | . 16 11 11 11 11 11 26 27 19 9 11 7 6 Wheel 6 | . 11 15 10 11 11 10 . . 2 10 9 7 . Device 9 | . . 2 15 11 11 11 10 4 6 11 14 15 6 Storage 9 | . 14 14 11 11 11 11 9 9 7 7 7 7 7 Processor 12 | . . . 8 11 11 11 16 18 15 14 15 15 15 Hackware 6 | . . . . . . . . 8 18 10 7 7 7 Protection 8 | . 13 11 8 11 11 10 8 4 3 7 7 7 14 Energy Cannon 1 | . . . . . . . 2 2 1 4 . . 6 Ballistic Gun 6 | . 28 25 12 11 11 11 1 . . . 6 . . Ballistic Cannon 5 | . . . 1 11 3 11 12 13 5 . 6 . 4 Special Weapon 2 | . . . 7 . . . 1 2 . 5 . 2 . Naked Turns . | . . . . . . . . . . . . . . Heaviest Build 83 | 14 52 65 70 68 68 68 71 77 83 70 63 63 83 Greatest Support 78 | 10 10 20 40 10 10 10 76 76 78 26 56 10 28 Greatest Overweight (x) 6 | 1 5 6 6 6 6 6 6 1 6 5 6 6 6 Average Overweight (x) 2 | . 1 4 5 6 6 6 . . . 3 3 5 2 Largest Inventory Capacity 20 | 8 20 20 20 20 20 20 20 20 20 20 20 20 20 Average Capacity 19 | 7 8 20 20 20 20 20 20 20 20 20 20 20 20 Most Carried 20 | 4 9 18 20 20 20 20 20 20 20 20 20 20 20 Average Carried 18 | 2 7 15 19 20 20 19 19 19 19 19 19 19 19 Final Capacity 20 | 8 20 20 20 20 20 20 20 20 20 20 20 20 20 Final Carried 20 | 4 9 18 20 20 20 20 20 20 20 20 20 19 20 Class Distribution -------------------- 58% | Mutant 20% | Hacker-Mutant 12% | Commander-Mutant 8% | Scavenger-Mutant Dominant Class ---------------- Mutant | -10/Materials Mutant | -10/Mines Mutant | -9/Materials Commander-Mutant | -9/Mines Commander-Mutant | -9/Exiles Mutant | -8/Mines Mutant | -8/Materials Commander-Mutant | -8/Storage Hacker-Mutant | -7/Factory Mutant | -7/Lower Caves Mutant | -7/Lower Caves Scavenger-Mutant | -7/Data Miner Scavenger-Mutant | -6/Proximity Caves Resources | -11 -10 -10 -9 -9 -9 -8 -8 -8 -7 -7 -7 -7 -6 ----------- Run | Scr Mat Min Mat Min Exi Min Mat Sto Fac Low Low Dat Pro Matter Collected 6762 | 227 696 356 756 . . 201 1492 789 1271 465 144 . 365 Remotely 1234 | . . . . . . . 724 120 390 . . . . Salvage Created 6660 | . 732 214 1011 . . 134 1759 752 1394 392 78 . 194 Parts 368 | . 40 11 80 . . 8 94 49 55 14 3 . 14 Haulers Intercepted 8 | . 1 . 3 . . . 3 1 . . . . . Recyclers Shooed 9 | . . . 1 . . . 2 5 1 . . . . Parts Field Recycled . | . . . . . . . . . . . . . . Retrieved Matter . | . . . . . . . . . . . . . . Parts Self-Destructed 29 | . . . . . . . . . . 15 1 . 13 Prevented 4 | . . . . . . . . . . 4 . . . Kills | -11 -10 -10 -9 -9 -9 -8 -8 -8 -7 -7 -7 -7 -6 ------- Run | Scr Mat Min Mat Min Exi Min Mat Sto Fac Low Low Dat Pro Combat Hostiles Destroyed 174 | . 13 12 32 . . 7 34 20 28 14 4 . 10 Melee 1 | . . . . . . . . . . . . . 1 Guns 50 | . 13 8 11 . . 4 3 . 8 . 1 . 2 Cannons 81 | . . . 5 . . 3 28 20 19 4 2 . . AOE 34 | . . 4 13 . . . 3 . 1 6 . . 7 Classes Destroyed 16 | . 5 . 3 . . 1 3 . 2 2 . . . Worker 12 | . . . 2 . . . 3 1 6 . . . . Builder 7 | . . . 1 . . . 4 1 1 . . . . Tunneler 2 | . . . . . . . . . 2 . . . . Hauler 8 | . 1 . 3 . . . 3 1 . . . . . Recycler 12 | . 2 . 2 . . . 4 1 3 . . . . Minesweeper 2 | . . . . . . . . . . 2 . . . Mechanic 1 | . . . . . . . 1 . . . . . . Operator 4 | . . . . . . . 1 2 1 . . . . Watcher 11 | . 2 . 2 . . . 5 . 2 . . . . Swarmer 52 | . 3 7 14 . . 4 4 3 . 6 3 . 8 Grunt 76 | . 10 5 12 . . 2 17 7 17 5 . . 1 Brawler 2 | . . . . . . . . . . 2 . . . Duelist 3 | . . . . . . 1 1 . 1 . . . . Sentry 32 | . . . 6 . . . 9 10 6 1 . . . Hunter 5 | . . . . . . . 3 . 2 . . . . Programmer 4 | . . . . . . . . . 2 . 1 . 1 Best Kill Streak 7 | . 3 3 7 . . 3 4 4 5 4 3 . 4 Combat Bots Only 6 | . 3 3 6 . . 3 4 4 4 4 3 . 4 Max Kills in Single Turn 5 | . 2 1 5 . . 1 2 1 2 3 1 . 3 Gunslinging 1 | . 1 . . . . . . . . . . . . Exploded 3 | . . 1 3 . . . 2 . 1 3 . . 3 Melee 1 | . . . . . . . . . . . . . 1 Uniques/NPCs Destroyed . | . . . . . . . . . . . . . . Combat | -11 -10 -10 -9 -9 -9 -8 -8 -8 -7 -7 -7 -7 -6 -------- Run | Scr Mat Min Mat Min Exi Min Mat Sto Fac Low Low Dat Pro Damage Taken 9080 | . 479 370 1293 . . 128 1532 795 2135 1136 274 . 938 Core 1224 | . 64 50 125 . . 22 115 115 284 160 32 . 257 Absorbed by Shields . | . . . . . . . . . . . . . . Regen/Repaired (Parts) 1273 | . . . 253 . . . 371 35 242 234 15 18 105 Core Remaining (%) 68 | 100 . 54 . . . 63 . 58 . . . . . Volleys Fired 519 | . 67 24 73 . . 14 121 54 111 28 10 3 14 Largest 2 | . 2 2 2 . . 2 2 2 2 2 2 1 2 Hottest 160 | . 40 53 103 . . 67 124 96 149 160 81 5 128 Shots Fired 958 | . 134 42 133 . . 28 235 99 204 45 14 3 21 Gun 370 | . 134 35 72 . . 14 40 . 63 . 4 . 8 Cannon 460 | . . . 7 . . 14 184 93 132 16 4 . 10 Launcher 28 | . . 7 8 . . . 3 . 2 5 . . 3 Special 100 | . . . 46 . . . 8 6 7 24 6 3 . Kinetic 660 | . 134 35 79 . . 28 165 80 114 11 8 . 6 Thermal 256 | . . . 46 . . . 67 19 82 24 6 . 12 Explosive 28 | . . 7 8 . . . 3 . 2 5 . . 3 Electromagnetic 11 | . . . . . . . . . 6 5 . . . Robot Hit Streak 39 | . 9 5 22 . . 15 39 14 24 15 22 1 9 Robot Miss Streak 5 | . 4 1 3 . . 3 5 4 4 2 3 2 1 Penetration Max . | . . . . . . . . . . . . . . Secondary Targets 4 | . 2 1 1 . . . . . . . . . . Max Gunslinging Chain 1 | . 1 1 1 . . . . . . . . . . Shots Hit Robots 688 | . 88 24 96 . 4 21 164 69 157 38 13 1 13 Core Hits 373 | . 34 19 61 . . 17 90 28 81 22 8 . 13 Critical Kills 2 | . . 1 . . . . . . . . . . 1 Critical Parts Destroyed 1 | . 1 . . . . . . . . . . . . Critical Strikes 33 | . 1 1 5 . . . 11 4 4 5 . . 2 Burn 12 | . . . 5 . . . 2 . . 4 . . 1 Destroy 2 | . 1 1 . . . . . . . . . . . Blast 18 | . . . . . . . 9 4 4 1 . . . Smash 1 | . . . . . . . . . . . . . 1 Melee Attacks 55 | . . . . . 4 . 1 2 32 8 2 . 6 Impact 48 | . . . . . . . . . 32 8 2 . 6 Slashing 3 | . . . . . . . 1 2 . . . . . Piercing . | . . . . . . . . . . . . . . Sneak Attacks 9 | . . . . . 4 . . 1 2 2 . . . Combat Hostiles . | . . . . . . . . . . . . . . Follow-up Attacks . | . . . . . . . . . . . . . . Damage Inflicted 17569 | . 1116 626 2389 . . 454 4220 2052 4498 1200 203 . 811 Guns 4611 | . 1116 303 816 . . 166 508 . 1479 . 56 . 167 Cannons 8607 | . . . 112 . . 288 3379 1836 2482 322 56 . 132 Explosions 2788 | . . 323 1069 . . . 293 . 205 470 . . 428 Melee 574 | . . . . . . . . 76 243 171 . . 84 Ramming 181 | . . . . . . . 18 107 56 . . . . Kinetic 10345 | . 1116 303 928 . . 454 3079 1696 2241 251 112 . 165 Thermal 3513 | . . . 392 . . . 830 173 1656 237 91 . 134 Explosive 2788 | . . 323 1069 . . . 293 . 205 470 . . 428 Electromagnetic 168 | . . . . . . . . . 97 71 . . . Impact 498 | . . . . . . . . . 243 171 . . 84 Slashing 76 | . . . . . . . . 76 . . . . . Piercing . | . . . . . . . . . . . . . . Highest Corruption 21 | . . . . . . . . 1 1 3 1 1 21 Average Corruption 5 | . . . . . . . . 1 1 2 1 1 20 Corruption Purged 4 | . . . . . . . . . 1 3 . . . Corruption Blocked . | . . . . . . . . . . . . . . Effects 88 | . . . . . . . . 9 9 . 14 1 55 Message Errors 18 | . . . . . . . . 1 2 . 4 . 11 Matter Fused 15 | . . . . . . . . 2 . . 1 1 11 Heat Flow Errors 16 | . . . . . . . . 1 3 . 4 . 8 Energy Discharges 19 | . . . . . . . . 1 2 . 3 . 13 Parts Rejected 1 | . . . . . . . . . . . . . 1 Data Loss (minor) 11 | . . . . . . . . 2 2 . 1 . 6 Data Loss (major) 2 | . . . . . . . . . . . 1 . 1 Misfires 3 | . . . . . . . . . . . . . 3 Alerts 1 | . . . . . . . . 1 . . . . . Weapon Failures 2 | . . . . . . . . 1 . . . . 1 Overload Shots . | . . . . . . . . . . . . . . Overflow Damage 592 | . . 30 29 . . . 72 76 203 121 . . 61 Projectiles 152 | . . . . . . . 60 40 52 . . . . Explosions 142 | . . 30 29 . . . 12 . . 10 . . 61 Melee 298 | . . . . . . . . 36 151 111 . . . Knockbacks 96 | . . . 2 . . 18 31 7 33 1 . . 4 Impact 3 | . . . . . . . . . 3 . . . . Kinetic 83 | . . . 2 . . 14 29 7 27 1 . . 3 Secondary 10 | . . . . . . 4 2 . 3 . . . 1 Self-Inflicted Damage 165 | . . 85 56 . . . . . 3 21 . . . Shots 6 | . . 3 1 . . . . . . 2 . . . Rammed 23 | . . . 1 . . . 1 14 7 . . . . Targets Rammed 25 | . . . 1 . . . 2 15 7 . . . . Kicked . | . . . . . . . . . . . . . . Crushed 2 | . . . . . . . 1 1 . . . . . Highest Temperature 360 | . 6 23 24 . . . 276 234 308 198 185 . 360 Average Temperature 76 | . 2 8 9 . . . 73 60 89 107 57 . 104 Received Heat Transfer 3093 | . 246 111 432 . . . 639 342 849 300 . . 174 Effects 5 | . . . . . . . . . . . . . 5 Energy Bleed 1 | . . . . . . . . . . . . . 1 Interference 3 | . . . . . . . . . . . . . 3 Short Circuit 1 | . . . . . . . . . . . . . 1 Siege Activations . | . . . . . . . . . . . . . . Robots Corrupted . | . . . . . . . . . . . . . . Combat Hostiles . | . . . . . . . . . . . . . . Parts Fried 8 | . . . . . . . . . 3 5 . . . Impact Corruptions 10 | . . . . . . . . . 6 4 . . . Robots Melted 8 | . . . 3 . . . . . . 4 1 . . Combat Hostiles 8 | . . . 3 . . . . . . 4 1 . . Parts Melted 25 | . . . 10 . . . 2 . 5 7 1 . . Heat Transferred 12381 | . . . 3440 . . . 1739 370 3645 2400 437 . 350 Parts Sabotaged . | . . . . . . . . . . . . . . Parts Stolen . | . . . . . . . . . . . . . . Parts Stripped . | . . . . . . . . . . . . . . Power Chain Reactions . | . . . . . . . . . . . . . . Missiles Intercepted . | . . . . . . . . . . . . . . Alert | -11 -10 -10 -9 -9 -9 -8 -8 -8 -7 -7 -7 -7 -6 ------- Run | Scr Mat Min Mat Min Exi Min Mat Sto Fac Low Low Dat Pro Peak Influence 564 | . 333 330 349 78 . 174 564 533 403 . . . . Initial 214 | . . 13 22 78 . . 27 214 179 . . . . Average 223 | . 153 138 132 78 . 66 359 394 196 . . . . Maximum Alert Level 2 | . 1 1 1 . . . 2 2 2 . . . . Low Security (%) 46 | 100 56 85 77 100 . 100 10 . 40 . . . . Level 1 38 | . 43 14 22 . . . 51 47 58 . . . . Level 2 14 | . . . . . . . 37 52 . . . . . Level 3 . | . . . . . . . . . . . . . . Level 4 . | . . . . . . . . . . . . . . Level 5 . | . . . . . . . . . . . . . . High Security . | . . . . . . . . . . . . . . Max Security . | . . . . . . . . . . . . . . Squads Dispatched 27 | . 3 1 4 . . . 5 1 12 . . . 1 Investigation 13 | . 2 . 3 . . . 4 . 4 . . . . Extermination 4 | . . . . . . . . . 4 . . . . Reinforcement 6 | . 1 . 1 . . . 1 1 2 . . . . Assault 2 | . . 1 . . . . . . . . . . 1 Garrison 2 | . . . . . . . . . 2 . . . . Intercept . | . . . . . . . . . . . . . . Searches Triggered . | . . . . . . . . . . . . . . Construction Impeded 1 | . . . 1 . . . . . . . . . . Haulers Reinforced . | . . . . . . . . . . . . . . Active Scanning Responses . | . . . . . . . . . . . . . . Cargo Convoy Interrupts . | . . . . . . . . . . . . . . Stealth | -11 -10 -10 -9 -9 -9 -8 -8 -8 -7 -7 -7 -7 -6 --------- Run | Scr Mat Min Mat Min Exi Min Mat Sto Fac Low Low Dat Pro Distress Signals 16 | . 2 . 2 . . . 4 3 5 . . . . Communications Jammed . | . . . . . . . . . . . . . . Distress Signals . | . . . . . . . . . . . . . . Times Spotted 292 | . 25 15 47 . . 14 51 30 50 29 5 . 26 Peak Tracking Total 12 | . 4 4 6 . . 7 5 4 7 4 3 . 12 Tactical Retreats 24 | . 2 2 . . . . 2 . 3 13 1 . 1 Traps | -11 -10 -10 -9 -9 -9 -8 -8 -8 -7 -7 -7 -7 -6 ------- Run | Scr Mat Min Mat Min Exi Min Mat Sto Fac Low Low Dat Pro Traps Triggered 9 | . . . 2 . . . 3 3 1 . . . . Indirectly . | . . . . . . . . . . . . . . Trap Hack Attempts . | . . . . . . . . . . . . . . Triggered . | . . . . . . . . . . . . . . Disarmed 4 | . 4 . . . . . . . . . . . . Reprogrammed 6 | . . . . . . . 6 . . . . . . Reused 4 | . . . . . . . 1 . . 2 1 . . Traps Extracted . | . . . . . . . . . . . . . . Installed 11 | . . . 3 . . . . . . 5 3 . . Triggered 6 | . . . . . . . 1 . . 3 2 . . Most Traps Carried 4 | . . 3 3 . . . . . . 4 3 . . Machines | -11 -10 -10 -9 -9 -9 -8 -8 -8 -7 -7 -7 -7 -6 ---------- Run | Scr Mat Min Mat Min Exi Min Mat Sto Fac Low Low Dat Pro Machines Disabled 11 | . . . 1 . . . 1 3 6 . . . . Max in Single Turn 1 | . . . 1 . . . 1 1 1 . . . . Garrison Access 5 | . . . . . . . 1 1 3 . . . . Machines Sabotaged . | . . . . . . . . . . . . . . Garrisons Compromised . | . . . . . . . . . . . . . . Overloaded Fab Kills . | . . . . . . . . . . . . . . Hacking | -11 -10 -10 -9 -9 -9 -8 -8 -8 -7 -7 -7 -7 -6 --------- Run | Scr Mat Min Mat Min Exi Min Mat Sto Fac Low Low Dat Pro Machines Accessed 83 | . 8 2 17 . 1 1 16 10 22 1 1 4 . Terminals 47 | . 6 1 12 . . 1 10 9 8 . . . . Fabricators 4 | . . . . . . . . . 4 . . . . Repair Stations 6 | . . . 2 . . . 2 . 2 . . . . Recycling Units 10 | . 2 . 2 . . . 2 . 4 . . . . Scanalyzers 3 | . . . 1 . . . 1 . 1 . . . . Garrison Access 5 | . . . . . . . 1 1 3 . . . . Total Hacks 273 | . 26 4 61 . 1 3 46 31 71 1 1 28 . Successful 187 | . 16 2 37 . 1 . 33 19 49 1 1 28 . Failed 86 | . 10 2 24 . . 3 13 12 22 . . . . Catastrophic 8 | . 1 . 2 . . . 3 1 1 . . . . Database Lockouts . | . . . . . . . . . . . . . . Manual 114 | . 17 . 29 . . 3 15 15 35 . . . . Terminals 173 | . 24 3 46 . . 3 29 30 38 . . . . Fabricators 10 | . . . . . . . . . 10 . . . . Repair Stations 21 | . . . 11 . . . 6 . 4 . . . . Recycling Units 17 | . 2 . 2 . . . 2 . 11 . . . . Scanalyzers 12 | . . . 2 . . . 8 . 2 . . . . Garrison Access 8 | . . . . . . . 1 1 6 . . . . Terminal Hacks 99 | . 10 2 18 . 1 . 10 12 16 1 1 28 . Record 12 | . . . . . 1 . . . . . . 11 . Part Schematic 14 | . 2 . . . . . . . 1 . . 11 . Robot Schematic 3 | . . . . . . . . . . . . 3 . Robot Analysis 8 | . 2 . 2 . . . 1 1 2 . . . . Prototype ID Bank 13 | . 1 . 4 . . . 2 1 2 . . 3 . Open Door 6 | . . 1 . . . . . 3 . 1 1 . . Branch Access Points 4 | . 1 . 1 . . . 1 . 1 . . . . Terminal Index 3 | . . . 1 . . . . 1 1 . . . . Garrison Index 1 | . . . . . . . . . 1 . . . . Alert Level 1 | . . . . . . . . . 1 . . . . Unreport Threat 9 | . 1 . 3 . . . 1 1 3 . . . . Locate Traps 6 | . . . 2 . . . 2 2 . . . . . Disarm Traps 1 | . 1 . . . . . . . . . . . . Reprogram Traps 1 | . . . . . . . 1 . . . . . . Recall Extermination 1 | . . . . . . . . . 1 . . . . Hauler Manifests 6 | . 1 . 2 . . . 1 1 1 . . . . Zone Layout 10 | . 1 1 3 . . . 1 2 2 . . . . Fabricator Hacks 6 | . . . . . . . . . 6 . . . . Network Status 2 | . . . . . . . . . 2 . . . . Load Schematic 2 | . . . . . . . . . 2 . . . . Build 2 | . . . . . . . . . 2 . . . . Repair Station Hacks 18 | . . . 9 . . . 6 . 3 . . . . Scan Component 9 | . . . 5 . . . 3 . 1 . . . . Repair 8 | . . . 4 . . . 3 . 1 . . . . Refit 1 | . . . . . . . . . 1 . . . . Recycling Unit Hacks 6 | . . . . . . . . . 6 . . . . Report Inventory 3 | . . . . . . . . . 3 . . . . Retrieve Components 3 | . . . . . . . . . 3 . . . . Scanalyzer 12 | . . . 2 . . . 8 . 2 . . . . Insert Component 5 | . . . 1 . . . 3 . 1 . . . . Analyze 7 | . . . 1 . . . 5 . 1 . . . . Garrison Access Hacks 5 | . . . . . . . 1 1 3 . . . . Seal Access 5 | . . . . . . . 1 1 3 . . . . Unauthorized Hacks 41 | . 6 . 8 . . . 8 6 13 . . . . Terminals 30 | . 4 . 6 . . . 6 6 8 . . . . Track 2 | . . . . . . . . . 2 . . . . Assimilate 6 | . 1 . 3 . . . 1 . 1 . . . . Botnet 17 | . 2 . 2 . . . 4 5 4 . . . . Operators 5 | . 1 . 1 . . . 1 1 1 . . . . Fabricators 1 | . . . . . . . . . 1 . . . . Prioritize 1 | . . . . . . . . . 1 . . . . Repair Stations . | . . . . . . . . . . . . . . Recycling Units 10 | . 2 . 2 . . . 2 . 4 . . . . Recyclers 1 | . . . . . . . . . 1 . . . . Mask 1 | . . . . . . . . . 1 . . . . Tunnel 8 | . 2 . 2 . . . 2 . 2 . . . . Scanalyzers . | . . . . . . . . . . . . . . Garrison Access . | . . . . . . . . . . . . . . Data Cores Recovered . | . . . . . . . . . . . . . . Used . | . . . . . . . . . . . . . . Hacking Detections 57 | . 6 . 14 . . 1 12 5 19 . . . . Full Trace Events 2 | . . . . . . . . . 2 . . . . Feedback Events . | . . . . . . . . . . . . . . Feedback Blocked . | . . . . . . . . . . . . . . Robot Schematics Acquired 3 | . . . . . . . . . . . . 3 . Robots Built . | . . . . . . . . . . . . . . Authchips . | . . . . . . . . . . . . . . Time . | . . . . . . . . . . . . . . Total Robot Build Rating . | . . . . . . . . . . . . . . Part Schematics Acquired 19 | . 2 . 1 . . . 3 . 2 . . 11 . Parts Built 2 | . . . . . . . . . 2 . . . . Authchips . | . . . . . . . . . . . . . . Time 54 | . . . . . . . . . 54 . . . . Total Part Build Rating 6 | . . . . . . . . . 6 . . . . Parts Repaired 8 | . . . 4 . . . 3 . 1 . . . . Time 268 | . . . 122 . . . 120 . 26 . . . . Parts Recycled . | . . . . . . . . . . . . . . Recycled Matter . | . . . . . . . . . . . . . . Retrieved Matter . | . . . . . . . . . . . . . . Retrieved Components 9 | . . . . . . . . . 9 . . . . Parts Scanalyzed 5 | . . . 1 . . . 3 . 1 . . . . Part Schematics Acquired 5 | . . . 1 . . . 3 . 1 . . . . Parts Damaged . | . . . . . . . . . . . . . . Bothacking | -11 -10 -10 -9 -9 -9 -8 -8 -8 -7 -7 -7 -7 -6 ------------ Run | Scr Mat Min Mat Min Exi Min Mat Sto Fac Low Low Dat Pro Used RIF Installer . | . . . . . . . . . . . . . . Robots Hacked 5 | . . . . . 4 . . . . . . 1 . Non-combat 3 | . . . . . 3 . . . . . . . . Combat 2 | . . . . . 1 . . . . . . 1 . Robot Hacks Applied 5 | . . . . . 4 . . . . . . 1 . parse_system 5 | . . . . . 4 . . . . . . 1 . Relay Couplers Released . | . . . . . . . . . . . . . . Fabnet Peak Effective % . | . . . . . . . . . . . . . . Robots Rewired 3 | . . . 3 . . . . . . . . . . Allies Hacked . | . . . . . . . . . . . . . . Hacks Repelled . | . . . . . . . . . . . . . . Allies | -11 -10 -10 -9 -9 -9 -8 -8 -8 -7 -7 -7 -7 -6 -------- Run | Scr Mat Min Mat Min Exi Min Mat Sto Fac Low Low Dat Pro Total Allies 22 | . 1 1 5 3 . . . 10 1 . . . 1 Largest Group 10 | . 1 1 3 5 5 5 . 10 8 . . . 1 Highest-Rated Group 173 | . 10 31 35 65 65 65 . 173 128 . . . 96 Highest-Rated Ally 96 | . 10 31 15 16 16 16 . 29 26 . . . 96 Total Orders 18 | . . . 4 . . . . 4 10 . . . . STAY 3 | . . . 1 . . . . 2 . . . . . FOLLOW 2 | . . . 1 . . . . 1 . . . . . DROP 1 | . . . 1 . . . . . . . . . . EXPLORE 9 | . . . . . . . . . 9 . . . . RETURN 3 | . . . 1 . . . . 1 1 . . . . Ally Attacks 123 | . . 5 7 . . 15 . 48 41 . . . 7 Total Damage 1622 | . . 86 127 . . 187 . 553 436 . . . 233 Kills 23 | . . 1 3 . . 5 . 5 7 . . . 2 Allies Corrupted . | . . . . . . . . . . . . . . Allies Melted . | . . . . . . . . . . . . . . Intel | -11 -10 -10 -9 -9 -9 -8 -8 -8 -7 -7 -7 -7 -6 ------- Run | Scr Mat Min Mat Min Exi Min Mat Sto Fac Low Low Dat Pro Robot Analysis Total 8 | . 2 . 2 . . . 1 1 2 . . . . Derelict Logs Recovered 8 | . . 1 . . . . . . . 2 3 . 2 Drone Launches 23 | . . 2 2 . . . . 13 6 . . . . Drone Recoveries 11 | . . 2 2 . . . . 1 6 . . . . Exploration | -11 -10 -10 -9 -9 -9 -8 -8 -8 -7 -7 -7 -7 -6 ------------- Run | Scr Mat Min Mat Min Exi Min Mat Sto Fac Low Low Dat Pro Turns Passed 21433 | 54 1093 1303 3051 269 439 1087 3248 2018 3582 2098 1845 166 1180 Spaces Moved 11749 | 46 786 782 1550 157 252 603 1576 956 1862 1392 1263 101 423 Core 2 | 2 . . . . . . . . . . . . . Treads 3934 | . . . 1 . . . 1558 956 1413 . 1 . 5 Legs 414 | . . . . . . . . . . . . . 414 Wheels 7399 | 44 786 782 1549 157 252 603 18 . 449 1392 1262 101 4 Hover . | . . . . . . . . . . . . . . Flight . | . . . . . . . . . . . . . . Fastest Speed 50 | 50 95 110 140 170 170 170 163 163 95 105 115 155 170 Average Speed 155 | 89 99 144 162 170 170 170 167 163 156 137 140 155 260 Slowest Speed 400 | 95 155 170 240 170 170 170 243 245 243 155 240 170 400 Overloaded Moves . | . . . . . . . . . . . . . . Propulsion Burnouts . | . . . . . . . . . . . . . . Robots Hopped . | . . . . . . . . . . . . . . Cave-ins Triggered . | . . . . . . . . . . . . . . Exploration Rate (%) 75 | 4 96 96 95 41 64 99 90 86 60 96 98 73 54 Regions Visited 13 Branch Regions 9 Pre-discovered Areas 10 | . 2 . 2 . 1 . 2 . 2 . . 1 . Known Exits Taken 6 | . 1 . 1 . . 1 1 . 1 1 . . . Unknown Exits Taken 7 | 1 . 1 . 1 1 . . 1 . . 1 1 . Scrap Searched 15 | . . 2 . . . 1 . . . 7 3 . 2 Spaces Dug 115 | . . 24 . . . . 12 . 27 28 2 . 22 Terrain Destroyed 338 | . . 84 55 . . . 44 17 49 53 3 . 33 Melee 34 | . . . . . . . 1 . 25 5 2 . 1 Projectile 58 | . . . . . . . 23 17 12 2 1 . 3 AOE 246 | . . 84 55 . . . 20 . 12 46 . . 29 Terrain Rammed . | . . . . . . . . . . . . . . Walls Destroyed . | . . . . . . . . . . . . . . Machines Disabled . | . . . . . . . . . . . . . . Actions | -11 -10 -10 -9 -9 -9 -8 -8 -8 -7 -7 -7 -7 -6 --------- Run | Scr Mat Min Mat Min Exi Min Mat Sto Fac Low Low Dat Pro Total 13723 | 55 961 906 1907 159 260 636 1936 1284 2233 1499 1312 109 466 Wait 797 | . 74 76 190 3 3 12 110 202 99 19 9 . . Move 11736 | 45 785 781 1549 156 251 602 1575 955 1861 1391 1262 100 423 Hop . | . . . . . . . . . . . . . . Pick Up 131 | 4 9 11 22 . . 1 34 6 21 15 5 . 3 Fast Attach 45 | 6 1 . 3 . . . 6 7 7 4 4 2 5 Attach 34 | . 1 2 7 . . 1 5 1 6 5 1 1 4 Detach 5 | . . . . . . . 2 . . . 1 . 2 Swap 230 | . 19 12 33 . 2 5 45 24 64 11 9 . 6 Drop 118 | . 5 . 20 . . 1 35 9 25 11 6 3 3 Fire 519 | . 67 24 73 . . 14 121 54 111 28 10 3 14 Melee 55 | . . . . . 4 . 1 2 32 8 2 . 6 Ram 3 | . . . 1 . . . . . 2 . . . . Kick . | . . . . . . . . . . . . . . Crush 22 | . . . . . . . 2 15 5 . . . . Escape Stasis 3 | . . . . . . . . 3 . . . . . Rewire 8 | . . . 6 . . . . . . 2 . . . Trap 11 | . . . 3 . . . . . . 5 3 . . Miscellaneous 6 | . . . . . . . . 6 . . . . . Route ------- -11/Scrapyard -10/Materials (discovered 5 exits: *Mat x3 / *Min x2) -10/Mines (discovered 2 exits: *Mat x2) -9/Materials (discovered 4 exits: *Mat x3 / *Min) -9/Mines -9/Exiles -8/Mines (discovered 2 exits: *Mat x2) -8/Materials (discovered 4 exits: *Fac x2 / *Sto x2) -8/Storage (discovered 2 exits: *Fac / Rec) -7/Factory (discovered 3 exits: *Fac / *Low x2) -7/Lower Caves -7/Lower Caves (discovered 2 exits: *Fac / *Dat) -7/Data Miner -6/Proximity Caves History --------- Turn | Location | Event 24 | -11/Scrapyard | Discovered new exit (range 16) 55 | -11/Scrapyard | Entered Materials 268 | -10/Materials | Discovered new exit (range 7) 313 | -10/Materials | Build established: Mutant 324 | -10/Materials | Identified exit to Mines 353 | -10/Materials | Discovered new exit (range 9) 662 | -10/Materials | Discovered new exit (range 13) 786 | -10/Materials | Discovered new exit (range 15) 1148 | -10/Materials | Entered Mines 1148 | -10/Mines | Accompanied by 1 ally 1208 | -10/Mines | Discovered new exit (range 8) 1218 | -10/Mines | Received a Rocket Launcher from a helpful Derelict 1611 | -10/Mines | Discovered new exit (range 7) 1638 | -10/Mines | Found a hidden stash of uninstalled traps 1668 | -10/Mines | Found the Drone Emporium 1675 | -10/Mines | Found Prototype Device 1680 | -10/Mines | Identified Sensor Drone Bay 2046 | -10/Mines | Met a Derelict testing a Signal Generator 2349 | -10/Mines | A weapon hastily lodged in a ceiling crevice suddenly fell to the ground 2451 | -10/Mines | Entered Materials 2451 | -9/Materials | Evolved 2 slots: Utility x2 3179 | -9/Materials | Build established: Scavenger-Mutant 3383 | -9/Materials | Discovered new exit (range 4) 3391 | -9/Materials | Identified exit to Materials 3518 | -9/Materials | Identified exit to Mines 3545 | -9/Materials | Build established: Mutant 4154 | -9/Materials | Repaired Med. Armor Plating? 4199 | -9/Materials | Repaired Lgt. Treads? 4304 | -9/Materials | Repaired Cooling System 4337 | -9/Materials | Repaired Rocket Launcher 4550 | -9/Materials | Discovered exit to Materials (range 15) 5033 | -9/Materials | Discovered exit to Materials (range 16) 5502 | -9/Materials | Entered Mines 5502 | -9/Mines | Accompanied by 2 allies 5503 | -9/Mines | Assembled infested the area 5569 | -9/Mines | Assisted by bots powering up and referring to "LRC-V3" 5763 | -9/Mines | Discovered new exit (range 5) 5771 | -9/Mines | Entered Exiles 5771 | -9/Exiles | Accompanied by 5 allies 5814 | -9/Exiles | Met 8R-AWN 5846 | -9/Exiles | Met EX-HEX 5862 | -9/Exiles | Build established: Commander-Mutant 5912 | -9/Exiles | Met EX-DEC 5959 | -9/Exiles | Learned location of Zion (-6) 6068 | -9/Exiles | Met EX-BIN 6187 | -9/Exiles | Discovered new exit (range 12) 6210 | -9/Exiles | Entered Mines 6210 | -8/Mines | Accompanied by 5 allies 6239 | -8/Mines | Discovered exit to Materials (range 12) 6410 | -8/Mines | Discovered exit to Materials (range 2) 7014 | -8/Mines | Build established: Mutant 7297 | -8/Mines | Entered Materials 7297 | -8/Materials | Evolved 2 slots: Propulsion x1, Utility x1 8209 | -8/Materials | Identified exit to Storage 8261 | -8/Materials | Discovered new exit (range 3) 9145 | -8/Materials | Repaired Rnf. Ion Engine 9774 | -8/Materials | Discovered new exit (range 14) 9886 | -8/Materials | Repaired Adv. Assault Cannon 9940 | -8/Materials | Repaired Adv. Assault Cannon 10545 | -8/Materials | Entered Storage 10546 | -8/Storage | Identified exit to Recycling 11184 | -8/Storage | Assisted by bots powering up and referring to "LRC-V3" 11379 | -8/Storage | Found Prototype Protection 11379 | -8/Storage | Identified Lgt. Regenerative Plating 11484 | -8/Storage | Build established: Commander-Mutant 11928 | -8/Storage | Discovered new exit (range 15) 12563 | -8/Storage | Entered Factory 12563 | -7/Factory | Accompanied by 18 allies 12563 | -7/Factory | Evolved 2 slots: Utility x2 13025 | -7/Factory | Discovered new exit (range 7) 13028 | -7/Factory | Build established: Hacker-Mutant 13052 | -7/Factory | Identified exit to Factory 13748 | -7/Factory | Identified exit to Lower Caves 14792 | -7/Factory | Garrison activated, responded to threat 15425 | -7/Factory | Garrison activated, responded to threat 15444 | -7/Factory | Fabricated Enh. Flamer (x1) 15493 | -7/Factory | Lost 3 parts (1p1n1u) 15620 | -7/Factory | Repaired Lgt. Treads? 15719 | -7/Factory | Fabricated Enh. Flamer (x1) 16145 | -7/Factory | Entered Lower Caves 16639 | -7/Lower Caves | Attracted the attention of an 0b10 checkpoint 16788 | -7/Lower Caves | Spotted B-75 Beast 16830 | -7/Lower Caves | Lost 4 parts (1n1u2w) 16934 | -7/Lower Caves | Identified exit to Lower Caves 17050 | -7/Lower Caves | Core integrity fell below 50% 17328 | -7/Lower Caves | Build established: Mutant 17361 | -7/Lower Caves | Learned location of 1 exit from Factory 18243 | -7/Lower Caves | Entered another Lower Caves area 18297 | -7/Lower Caves | Discovered exit to Factory (range 9) 18918 | -7/Lower Caves | Learned Factory terminal intel 18921 | -7/Lower Caves | Learned location of 1 exit from Factory 19972 | -7/Lower Caves | Discovered new exit (range 5) 20028 | -7/Lower Caves | Learned Factory terminal intel 20088 | -7/Lower Caves | Entered Data Miner 20090 | -7/Data Miner | Discovered new exit (range 6) 20120 | -7/Data Miner | Met Data Miner 20168 | -7/Data Miner | Learned location of Section 7 (-3) 20168 | -7/Data Miner | Acquired the access code to Warlord's prototype stash 20193 | -7/Data Miner | Received God Mode back door access code from Data Miner 20254 | -7/Data Miner | Entered Proximity Caves 20262 | -6/Proximity Caves | System corruption reached 10% 20264 | -6/Proximity Caves | Escorted by Enhanced Grunt 20285 | -6/Proximity Caves | Core integrity fell below 20% 20297 | -6/Proximity Caves | Lost 3 parts (2n1w) 20301 | -6/Proximity Caves | Build established: Scavenger-Mutant 20409 | -6/Proximity Caves | Learned location of 1 exit from Factory 21016 | -6/Proximity Caves | Spotted B-75 Beast 21420 | -6/Proximity Caves | Attracted the attention of an 0b10 outpost 21434 | -6/Proximity Caves | Destroyed by L-41 Fighter with Axe Last Messages --------------- 21305_ System corrupted: Component data lost. 21320_ WWF%A55LCVB2NQIFYT=LY#X&BKIXU 21419_ Penetrated by Slug. 21420_ Y-64 Sentinel: "DETECTED UNIDENTIFIED DERELICT." 21424_ System corrupted: Energy discharge (-72). 21424_ Y-64 Sentinel: "REQUESTING BACKUP." 21424_ Neutrino Core destroyed. 21424_ Penetrated by Slug. 21427_ Lgt. Treads destroyed. 21427_ Penetrated by Slug. 21428_ Lgt. Regenerative Plating severed. 21430_ Acquired Lgt. Regenerative Plating. 21431_ C-30 ARC bursts open, deploying its payload. 21431_ G-67 Veteran unfolds itself. 21431_ G-50 Soldier unfolds itself. 21431_ I-36 Angel unfolds itself. Map ----- +----------------------------------------------------+ | | | | | | | | | | | ?????????????????????????????????????????????????? | | ?????????????????????????????????????????????????? | | ?????????????????????????????????????????????????? | | ?????????????????????????????????????????????????? | | ?????????????????????????????????????????????????? | | ?????????????????????????????????????????????????? | | ?????????????????????????????????????????????????? | | ?????????????????????????????????????????????????? | | ?????????????????????????????????????????????????? | | ?????????????????????????????????????????????????? | | ?????????????????????????????????????????????????? | | ?????????????????????????????????????????????????? | | ?????????????????????????????????????????????????? | | ?????????????????????????????????????????????????? | | ?????????????????????????????????????????????????? | | ????????????????????????????????????##########???? | | ????????????????????????????????????# ##??? | | ?????????????????????????????????????# ###? | | ?????????????????????????????????????# #? | | ?????????????????????############????# ## #? | | ?????????????????????# l@ #?????# ## #? | | ?????????????????????# l###### #?????# #? | | ?????????????????????# #???# ####### ##? | | ????????????????????##Y #???# ## ##?? | | ????????????????????#g ##/#???# ## #??? | | ????????????????????#g #? ???# ## #??? | | ??????????????? #####g #? ???# ### #??? | | ?????????????? % #?"""??# #####?# #??? | | ????????????????? ######## ##????# #??? | | ??????????????????### % ##???# #??? | | ????????###????????## % #???# #??? | | ???????## ##???????# % #??# #??? | | ???????# ##??????# ## # % #??# #??? | | ???????# #??????## #####% ## ##??# #??? | | ????????# ##?????##" #???# #?# ##### #??? | | ####????# #######"## #?# #?? ## #??? | | ##???# #### ## %#?? ## #??? | | #??## #?### ##%% ?? ##% ####??? | | #### ## ###?## ## #??### ##????? | | ### ### #??## # #???## #????? | | ### #?# #????# # #?### #????? | | ### #?### #????? # ### % %##???? | | ##?# #####???# #????? # % ###?? | | #### ########## #????? # ## ##? | | ## ###??? ### #### #### #? | +----------------------------------------------------+ Best States ------------- Heat Dissipation 53 Coolant Potential 65 Energy Generation 19 Energy Capacity 315 Matter Stores 300 Matter Capacity 300 Sight Range 16 Terrain Scan Density 10 Armor Coverage 375 Resistance: TH 10 Evasion (%) 44 Targeting Accuracy 16 Recoil Reduction 3 Offensive Hacking 20 Defensive Hacking 10 Item Schematics ----------------- Hcp. Storage Unit | -10/Materials | Hacked Huge Storage Unit | -10/Materials | Hacked Enh. Flamer | -9/Materials | Scanalyzed Plasma Cutter | -8/Materials | Scanalyzed Tractor Beam | -8/Materials | Scanalyzed System Shield | -8/Materials | Scanalyzed Plasma Rifle | -7/Factory | Hacked Machine Analyzer | -7/Factory | Scanalyzed Combat Drone Bay | -7/Data Miner | Free Lgt. Regenerative Plating | -7/Data Miner | Free Cld. Cesium-ion Thruster | -7/Data Miner | Free Gravity Neutralizer | -7/Data Miner | Free Ion Burst Cannon | -7/Data Miner | Free Field Propulsion Drive | -7/Data Miner | Free Imp. Transmission Jammer | -7/Data Miner | Free Lance | -7/Data Miner | Free Adv. Salvage Targeting Computer | -7/Data Miner | Free Adv. Field Recycling Unit | -7/Data Miner | Free Matter Neutralizer | -7/Data Miner | Free Robot Schematics ------------------ A-15 Conveyor | -7/Data Miner | Free W-25 Informer | -7/Data Miner | Free E-15 Imp | -7/Data Miner | Free Fabricated ------------ Enh. Flamer | x1 | -7/Factory Enh. Flamer | x1 | -7/Factory Alien Tech Used ----------------- None Achievements -------------- None Challenges ------------ None Game ------ Seed MediumAngularBeam Manual? 0 Play Time 02:30:22 Cumulative 379.4 hours Start 2022.06.16 @ 17:45:14 End 2022.06.16 @ 22:01:59 Sessions 3 Manual Loads 0 Difficulty Rogue Special Mode None Game No. 101 Rogue 101 Adventurer 0 Explorer 0 Win Type - Total 19 Types 15/1/3/0/0/0/0/0/0 Lore% 90 Gallery% 92 Achievement% 77 Wizard Run 0 Options --------- ASCII 0 Keyboard 0 Movement Numpad Keybinds 0 Fullscreen 1 Font 14/SmallcapsGlow Map View 84x54 Tactical HUD 1 Map Filters NONE Filters NONE Steam 1 RUN: 0f473c36-04da-4152-8e96-e4023526620a